[Event "MČR juniorů a juniorek v rapid šachu 2023"]
[Site "Czech Republic"]
[Date "2023.09.23"]
[Round "3.23"]
[White "Cinkova, Vicky"]
[Black "Strnadova, Monika"]
[Result "1-0"]
[TimeControl "20 min + 5 sec per move"]
[WhiteFideId "23725826"]
[BlackFideId "23701668"]
[WhiteElo "1300"]
[BlackElo "1728"]

1. d4 {[%clk 00:20:00]} {[%emt 00:00:09]} Nf6 {[%clk 00:20:09]} {[%emt
00:00:02]} 2. c4 {[%clk 00:20:04]} g6 {[%clk 00:20:12]} {[%emt 00:00:01]} 3. g3
{[%clk 00:20:07]} {[%emt 00:00:02]} Bg7 {[%clk 00:20:15]} {[%emt 00:00:02]} 4.
Bg2 {[%clk 00:20:10]} {[%emt 00:00:02]} O-O {[%clk 00:20:18]} {[%emt 00:00:02]}
5. Nc3 {[%clk 00:20:14]} d6 {[%clk 00:20:20]} {[%emt 00:00:03]} 6. e3 {[%clk
00:20:17]} {[%emt 00:00:02]} Nbd7 {[%clk 00:20:16]} {[%emt 00:00:09]} 7. Nge2
{[%clk 00:20:15]} {[%emt 00:00:07]} c5 {[%clk 00:19:51]} {[%emt 00:00:29]} 8.
O-O {[%clk 00:19:44]} {[%emt 00:00:36]} Rb8 {[%clk 00:19:32]} {[%emt 00:00:24]}
9. Rb1 {[%clk 00:18:22]} {[%emt 00:01:27]} Nb6 {[%clk 00:18:42]} {[%emt
00:00:55]} 10. b3 {[%clk 00:17:59]} {[%emt 00:00:28]} Bf5 {[%clk 00:18:41]}
{[%emt 00:00:06]} 11. e4 {[%clk 00:16:55]} {[%emt 00:01:10]} Bg4 {[%emt
00:02:30]} 12. d5 {[%clk 00:16:26]} {[%emt 00:00:03]} Qc8 {[%clk 00:16:14]}
{[%emt 00:00:36]} 13. Bb2 {[%clk 00:15:22]} {[%emt 00:01:09]} h5 {[%clk
00:14:31]} {[%emt 00:01:48]} 14. Qd2 {[%clk 00:14:07]} {[%emt 00:01:21]} Bh3
{[%clk 00:12:46]} {[%emt 00:01:50]} 15. Nf4 {[%clk 00:13:04]} {[%emt 00:01:08]}
Bxg2 {[%clk 00:12:48]} {[%emt 00:00:03]} 16. Nxg2 {[%clk 00:12:14]} {[%emt
00:00:55]} Kh7 {[%clk 00:12:30]} {[%emt 00:00:23]} 17. Rfe1 {[%clk 00:11:48]}
{[%emt 00:00:31]} Bh6 {[%clk 00:12:25]} {[%emt 00:00:10]} 18. Qc2 {[%clk
00:11:17]} {[%emt 00:00:35]} Qh3 {[%clk 00:12:10]} {[%emt 00:00:21]} 19. f3
{[%clk 00:10:47]} {[%emt 00:00:36]} Nbd7 {[%clk 00:11:40]} {[%emt 00:00:34]} 20.
Ne2 {[%clk 00:10:29]} {[%emt 00:00:23]} Ne5 {[%clk 00:10:20]} {[%emt 00:01:26]}
21. Bxe5 {[%clk 00:08:39]} {[%emt 00:01:55]} dxe5 {[%clk 00:10:23]} {[%emt
00:00:01]} 22. Kh1 {[%clk 00:08:06]} {[%emt 00:00:38]} Nd7 {[%clk 00:09:40]}
{[%emt 00:00:48]} 23. Ng1 {[%clk 00:08:02]} {[%emt 00:00:09]} Qxg2+ {[%clk
00:09:11]} {[%emt 00:00:34]} 24. Kxg2 {[%clk 00:07:58]} {[%emt 00:00:09]} f5
{[%clk 00:09:14]} {[%emt 00:00:02]} 25. exf5 {[%clk 00:06:32]} {[%emt
00:01:32]} Rxf5 {[%clk 00:09:18]} 26. f4 {[%clk 00:06:12]} {[%emt 00:00:25]}
Rbf8 {[%clk 00:09:06]} {[%emt 00:00:18]} 27. Ne2 {[%clk 00:05:54]} {[%emt
00:00:23]} Nf6 {[%clk 00:08:42]} {[%emt 00:00:29]} 28. Rf1 {[%clk 00:04:54]}
{[%emt 00:01:04]} Ng4 {[%clk 00:08:41]} {[%emt 00:00:06]} 29. Qc3 {[%clk
00:03:02]} {[%emt 00:01:57]} exf4 {[%clk 00:08:24]} {[%emt 00:00:22]} 30. Nxf4
{[%clk 00:02:48]} {[%emt 00:00:20]} Bg7 {[%clk 00:07:32]} {[%emt 00:00:56]} 31.
Qd3 {[%clk 00:02:30]} {[%emt 00:00:22]} Bd4 {[%clk 00:07:28]} {[%emt 00:00:10]}
32. Rbe1 {[%clk 00:01:19]} {[%emt 00:01:15]} R8f7 {[%clk 00:07:32]} {[%emt
00:00:02]} 33. h3 {[%clk 00:01:18]} {[%emt 00:00:06]} Nh6 {[%clk 00:07:09]}
{[%emt 00:00:28]} 34. Ne6 {[%clk 00:00:28]} {[%emt 00:00:55]} Rf2+ {[%clk
00:07:03]} {[%emt 00:00:10]} 35. Rxf2 {[%clk 00:00:32]} {[%emt 00:00:02]} Rxf2+
{[%clk 00:07:07]} 36. Kh1 {[%clk 00:00:37]} Nf5 {[%clk 00:06:49]} {[%emt
00:00:22]} 37. Nxd4 {[%clk 00:00:29]} {[%emt 00:00:13]} cxd4 {[%clk 00:06:52]}
{[%emt 00:00:01]} 38. g4 {[%clk 00:00:24]} {[%emt 00:00:10]} Nh4 {[%clk
00:05:36]} {[%emt 00:01:21]} 39. Rxe7+ {[%clk 00:00:27]} {[%emt 00:00:03]} Kg8
{[%clk 00:05:37]} {[%emt 00:00:03]} 40. Re1 {[%clk 00:00:14]} {[%emt 00:00:19]}
Rf3 {[%clk 00:05:15]} {[%emt 00:00:26]} 41. Qxd4 {[%clk 00:00:12]} {[%emt
00:00:07]} Rxh3+ {[%clk 00:05:19]} {[%emt 00:00:01]} 42. Kg1 {[%clk 00:00:16]}
Rg3+ {[%clk 00:03:05]} {[%emt 00:02:20]} 43. Kh2 {[%clk 00:00:10]} {[%emt
00:00:11]} Rxg4 {[%clk 00:03:03]} {[%emt 00:00:07]} 44. Qb2 {[%clk 00:00:14]}
{[%emt 00:00:01]} Nf3+ {[%clk 00:03:02]} {[%emt 00:00:05]} 45. Kh3 {[%clk
00:00:16]} {[%emt 00:00:02]} Nxe1 {[%clk 00:03:02]} {[%emt 00:00:06]} 46. d6
{[%clk 00:00:19]} {[%emt 00:00:02]} Nd3 {[%clk 00:02:51]} {[%emt 00:00:15]} 47.
Qd2 {[%clk 00:00:23]} {[%emt 00:00:01]} Nf4+ {[%clk 00:02:47]} {[%emt
00:00:10]} 48. Kh2 {[%clk 00:00:21]} {[%emt 00:00:07]} Kg7 {[%clk 00:01:15]}
{[%emt 00:01:37]} 49. Qd4+ {[%clk 00:00:19]} {[%emt 00:00:07]} Kh7 {[%clk
00:01:05]} {[%emt 00:00:15]} 50. Qxa7 {[%clk 00:00:11]} {[%emt 00:00:14]} Ne6
{[%clk 00:00:27]} {[%emt 00:00:43]} 51. Qxb7+ {[%clk 00:00:14]} {[%emt
00:00:01]} Kh6 {[%clk 00:00:31]} 52. d7 {[%clk 00:00:18]} Rd4 {[%clk 00:00:35]}
53. Qb6 {[%clk 00:00:10]} {[%emt 00:00:14]} Rd2+ {[%clk 00:00:39]} {[%emt
00:00:01]} 54. Kg1 {[%clk 00:00:13]} {[%emt 00:00:02]} Rxd7 {[%clk 00:00:34]}
{[%emt 00:00:09]} 55. Qxe6 {[%emt 00:00:01]} Rd1+ 56. Kf2 {[%clk 00:00:20]}
{[%emt 00:00:01]} Rd2+ {[%clk 00:00:43]} {[%emt 00:00:02]} 57. Ke3 {[%clk
00:00:24]} Rxa2 {[%clk 00:00:47]} {[%emt 00:00:01]} 58. c5 {[%clk 00:00:27]}
{[%emt 00:00:02]} Ra1 {[%clk 00:00:50]} 59. Kd3 {[%clk 00:00:30]} {[%emt
00:00:02]} Rd1+ {[%clk 00:00:54]} 60. Kc2 {[%clk 00:00:34]} {[%emt 00:00:02]}
Rd8 {[%clk 00:00:58]} {[%emt 00:00:01]} 61. c6 {[%clk 00:00:39]} 1-0

[Event "MČR juniorů a juniorek v rapid šachu 2023"]
[Site "Czech Republic"]
[Date "2023.09.23"]
[Round "3.24"]
[White "Stastna, Martina"]
[Black "Stara, Zuzana"]
[Result "1-0"]
[TimeControl "20 min + 5 sec per move"]
[WhiteFideId "385123"]
[BlackFideId "23733543"]
[WhiteElo "1725"]
[BlackElo "1377"]

1. e4 {[%clk 00:20:08]} c6 {[%clk 00:20:09]} {[%emt 00:00:01]} 2. d4 {[%clk
00:20:00]} {[%emt 00:00:13]} d5 {[%clk 00:20:12]} {[%emt 00:00:02]} 3. exd5
{[%clk 00:19:56]} {[%emt 00:00:09]} cxd5 {[%clk 00:20:16]} {[%emt 00:00:02]} 4.
Bd3 {[%clk 00:19:43]} {[%emt 00:00:18]} g6 {[%clk 00:20:19]} {[%emt 00:00:02]}
5. c3 {[%clk 00:19:15]} {[%emt 00:00:33]} Nc6 {[%clk 00:20:04]} {[%emt
00:00:19]} 6. Nd2 {[%clk 00:18:52]} {[%emt 00:00:28]} Nh6 {[%clk 00:19:33]}
{[%emt 00:00:37]} 7. Ngf3 {[%clk 00:17:17]} {[%emt 00:01:40]} Bf5 {[%clk
00:19:18]} {[%emt 00:00:20]} 8. Bb5 {[%clk 00:16:57]} {[%emt 00:00:25]} Bg7
{[%clk 00:18:13]} {[%emt 00:01:10]} 9. Ne5 {[%clk 00:16:19]} {[%emt 00:00:43]}
Bxe5 {[%clk 00:15:46]} {[%emt 00:02:33]} 10. dxe5 {[%clk 00:16:13]} {[%emt
00:00:11]} Ng4 {[%clk 00:05:19]} {[%emt 00:10:31]} 11. Nf3 {[%clk 00:14:58]}
{[%emt 00:01:20]} Be4 {[%clk 00:03:44]} {[%emt 00:01:41]} 12. Bf4 {[%clk
00:12:31]} {[%emt 00:02:32]} Qb6 {[%clk 00:01:15]} {[%emt 00:02:34]} 13. Nd4
{[%clk 00:10:52]} {[%emt 00:01:43]} Nxf2 {[%clk 00:00:59]} {[%emt 00:00:22]} 14.
Kxf2 {[%clk 00:10:36]} {[%emt 00:00:21]} a6 {[%clk 00:00:58]} {[%emt 00:00:06]}
15. Bxc6+ {[%clk 00:10:16]} {[%emt 00:00:25]} bxc6 {[%clk 00:01:02]} {[%emt
00:00:01]} 16. Qb3 {[%clk 00:09:35]} {[%emt 00:00:46]} Rb8 {[%clk 00:00:28]}
{[%emt 00:00:38]} 17. Qxb6 {[%clk 00:08:06]} {[%emt 00:01:35]} Rxb6 {[%clk
00:00:32]} {[%emt 00:00:01]} 18. b3 {[%clk 00:08:06]} {[%emt 00:00:04]} c5
{[%clk 00:00:32]} {[%emt 00:00:06]} 19. Nf3 {[%clk 00:07:37]} {[%emt 00:00:34]}
c4 {[%clk 00:00:21]} {[%emt 00:00:17]} 20. b4 {[%clk 00:07:03]} {[%emt
00:00:38]} a5 {[%clk 00:00:20]} {[%emt 00:00:06]} 21. Be3 {[%clk 00:06:31]}
{[%emt 00:00:37]} Rb5 {[%clk 00:00:18]} {[%emt 00:00:07]} 22. Nd4 {[%clk
00:06:22]} {[%emt 00:00:14]} Rb7 {[%clk 00:00:17]} {[%emt 00:00:06]} 23. Nc6
{[%clk 00:05:55]} {[%emt 00:00:31]} axb4 {[%clk 00:00:14]} {[%emt 00:00:09]} 24.
Nxb4 {[%clk 00:05:58]} {[%emt 00:00:02]} e6 {[%clk 00:00:14]} {[%emt 00:00:05]}
25. a4 {[%clk 00:05:55]} {[%emt 00:00:08]} Kd7 {[%clk 00:00:15]} {[%emt
00:00:04]} 26. a5 {[%clk 00:05:48]} {[%emt 00:00:12]} Ra8 {[%clk 00:00:13]}
{[%emt 00:00:06]} 27. Bd4 {[%clk 00:05:18]} {[%emt 00:00:35]} Rb5 {[%clk
00:00:14]} {[%emt 00:00:05]} 28. a6 {[%clk 00:05:14]} {[%emt 00:00:09]} h5
{[%clk 00:00:16]} {[%emt 00:00:02]} 29. Rhg1 {[%clk 00:05:02]} {[%emt
00:00:17]} Ke7 {[%clk 00:00:12]} {[%emt 00:00:10]} 30. g4 {[%clk 00:04:44]}
{[%emt 00:00:23]} h4 {[%clk 00:00:13]} {[%emt 00:00:04]} 31. g5 {[%clk
00:03:57]} {[%emt 00:00:51]} Ke8 {[%clk 00:00:17]} {[%emt 00:00:02]} 32. Rg4
{[%clk 00:03:44]} {[%emt 00:00:17]} h3 {[%clk 00:00:11]} {[%emt 00:00:11]} 33.
Rh4 {[%clk 00:03:48]} {[%emt 00:00:01]} Ke7 {[%clk 00:00:12]} {[%emt 00:00:04]}
34. Rxh3 {[%clk 00:03:52]} {[%emt 00:00:02]} Kd7 {[%clk 00:00:12]} {[%emt
00:00:06]} 35. Rh7 {[%clk 00:03:52]} {[%emt 00:00:04]} Ke7 {[%clk 00:00:15]}
{[%emt 00:00:01]} 36. Ke3 {[%clk 00:03:29]} {[%emt 00:00:28]} Bf5 {[%clk
00:00:16]} {[%emt 00:00:05]} 37. a7 {[%clk 00:03:12]} {[%emt 00:00:22]} Bg4
{[%clk 00:00:18]} {[%emt 00:00:04]} 38. Na6 {[%clk 00:02:57]} {[%emt 00:00:19]}
Rb2 {[%clk 00:00:15]} {[%emt 00:00:07]} 39. Nc7 {[%clk 00:02:55]} {[%emt
00:00:08]} 1-0

[Event "MČR juniorů a juniorek v rapid šachu 2023"]
[Site "Czech Republic"]
[Date "2023.09.23"]
[Round "3.26"]
[White "Beran, Jakub"]
[Black "Tegda, Vojtech"]
[Result "1-0"]
[TimeControl "20 min + 5 sec per move"]
[WhiteFideId "23727071"]
[BlackFideId "23723424"]
[WhiteElo "1645"]
[BlackElo "1959"]

1. c4 {[%clk 00:20:08]} {[%emt 00:00:02]} e5 {[%clk 00:20:08]} {[%emt
00:00:02]} 2. Nc3 {[%clk 00:20:11]} {[%emt 00:00:02]} Nf6 {[%clk 00:20:07]}
{[%emt 00:00:06]} 3. d3 {[%clk 00:20:12]} {[%emt 00:00:03]} c6 {[%clk
00:19:38]} {[%emt 00:00:35]} 4. Nf3 {[%clk 00:20:06]} {[%emt 00:00:12]} Qc7
{[%clk 00:19:37]} {[%emt 00:00:05]} 5. Bg5 {[%clk 00:19:45]} {[%emt 00:00:25]}
Be7 {[%clk 00:17:05]} {[%emt 00:02:38]} 6. g3 {[%clk 00:19:44]} {[%emt
00:00:06]} d5 {[%clk 00:14:51]} {[%emt 00:02:19]} 7. Bxf6 {[%clk 00:19:18]}
{[%emt 00:00:31]} Bxf6 {[%clk 00:14:54]} {[%emt 00:00:03]} 8. cxd5 {[%clk
00:19:12]} {[%emt 00:00:11]} cxd5 {[%clk 00:14:57]} {[%emt 00:00:02]} 9. Qa4+
{[%clk 00:18:43]} {[%emt 00:00:34]} Qc6 {[%clk 00:13:57]} {[%emt 00:01:05]} 10.
Qxc6+ {[%clk 00:18:29]} {[%emt 00:00:18]} bxc6 {[%clk 00:14:01]} {[%emt
00:00:02]} 11. Bg2 {[%clk 00:18:18]} {[%emt 00:00:16]} Be6 {[%clk 00:13:09]}
{[%emt 00:00:57]} 12. O-O {[%clk 00:18:13]} {[%emt 00:00:09]} O-O {[%clk
00:13:12]} {[%emt 00:00:02]} 13. Na4 {[%clk 00:17:56]} {[%emt 00:00:23]} Nd7
{[%clk 00:12:51]} {[%emt 00:00:25]} 14. Rac1 {[%clk 00:17:53]} {[%emt
00:00:03]} Rfc8 {[%clk 00:12:52]} {[%emt 00:00:10]} 15. b3 {[%clk 00:17:53]}
{[%emt 00:00:05]} Rab8 {[%clk 00:11:46]} {[%emt 00:01:10]} 16. Nc5 {[%clk
00:17:50]} {[%emt 00:00:09]} Nxc5 {[%clk 00:11:36]} {[%emt 00:00:14]} 17. Rxc5
{[%clk 00:17:54]} {[%emt 00:00:02]} Be7 {[%clk 00:11:09]} {[%emt 00:00:32]} 18.
Ra5 {[%clk 00:17:46]} {[%emt 00:00:09]} Bd8 {[%clk 00:07:36]} {[%emt 00:03:41]}
19. Rc5 {[%clk 00:14:27]} {[%emt 00:03:25]} Bb6 {[%clk 00:07:10]} {[%emt
00:00:30]} 20. Rc2 {[%clk 00:14:28]} {[%emt 00:00:03]} f6 {[%clk 00:07:11]}
{[%emt 00:00:05]} 21. Rfc1 {[%clk 00:14:30]} {[%emt 00:00:02]} e4 {[%clk
00:05:09]} {[%emt 00:02:07]} 22. dxe4 {[%clk 00:13:51]} {[%emt 00:00:45]} dxe4
{[%clk 00:05:12]} {[%emt 00:00:02]} 23. Nd2 {[%clk 00:13:54]} {[%emt 00:00:01]}
e3 {[%clk 00:05:04]} {[%emt 00:00:14]} 24. fxe3 {[%clk 00:12:49]} {[%emt
00:01:09]} Bxe3+ {[%clk 00:05:06]} {[%emt 00:00:03]} 25. Kh1 {[%clk 00:12:53]}
Rd8 {[%clk 00:04:23]} {[%emt 00:00:49]} 26. Rd1 {[%clk 00:12:14]} {[%emt
00:00:44]} Bf5 {[%clk 00:04:09]} {[%emt 00:00:19]} 27. Rb2 {[%clk 00:11:44]}
{[%emt 00:00:31]} Rd6 {[%clk 00:03:33]} {[%emt 00:00:45]} 28. Rf1 {[%clk
00:11:29]} {[%emt 00:00:16]} Bxd2 {[%clk 00:00:34]} {[%emt 00:03:09]} 29. Rxf5
{[%clk 00:11:31]} {[%emt 00:00:02]} Bc3 {[%clk 00:00:31]} {[%emt 00:00:08]} 30.
Rc2 {[%clk 00:10:48]} {[%emt 00:00:43]} Be5 {[%clk 00:00:21]} {[%emt 00:00:20]}
31. Rf1 {[%clk 00:10:27]} {[%emt 00:00:26]} Rbd8 {[%clk 00:00:11]} {[%emt
00:00:17]} 32. Bxc6 {[%clk 00:10:23]} {[%emt 00:00:08]} Rd2 {[%clk 00:00:12]}
{[%emt 00:00:05]} 33. Rfc1 {[%clk 00:10:01]} {[%emt 00:00:24]} Rxc2 {[%clk
00:00:06]} {[%emt 00:00:14]} 34. Rxc2 {[%clk 00:10:05]} Rd1+ {[%clk 00:00:09]}
{[%emt 00:00:02]} 35. Kg2 {[%clk 00:10:09]} Kf7 {[%clk 00:00:13]} {[%emt
00:00:01]} 36. Be4 {[%clk 00:09:47]} {[%emt 00:00:25]} g6 {[%clk 00:00:15]}
{[%emt 00:00:06]} 37. e3 {[%clk 00:09:06]} {[%emt 00:00:41]} f5 {[%clk
00:00:12]} {[%emt 00:00:12]} 38. Bf3 {[%clk 00:09:00]} {[%emt 00:00:09]} Rd3
{[%clk 00:00:15]} {[%emt 00:00:04]} 39. Kf2 {[%clk 00:08:44]} {[%emt 00:00:18]}
Ke6 {[%clk 00:00:14]} {[%emt 00:00:09]} 40. Ke2 {[%clk 00:08:38]} {[%emt
00:00:10]} Rd6 {[%clk 00:00:17]} {[%emt 00:00:02]} 41. b4 {[%clk 00:07:44]}
{[%emt 00:00:59]} Ra6 {[%clk 00:00:14]} {[%emt 00:00:09]} 42. b5 {[%clk
00:07:42]} {[%emt 00:00:06]} Ra5 {[%clk 00:00:17]} {[%emt 00:00:02]} 43. Bc6
{[%clk 00:07:34]} {[%emt 00:00:10]} a6 {[%clk 00:00:12]} {[%emt 00:00:13]} 44.
b6 {[%clk 00:07:27]} {[%emt 00:00:09]} Kd6 {[%clk 00:00:07]} {[%emt 00:00:12]}
45. Bf3 {[%clk 00:07:12]} {[%emt 00:00:17]} Rb5 {[%clk 00:00:07]} {[%emt
00:00:09]} 46. b7 {[%clk 00:07:15]} {[%emt 00:00:01]} Kd7 {[%clk 00:00:09]}
{[%emt 00:00:03]} 47. Bc6+ {[%clk 00:07:19]} {[%emt 00:00:01]} 1-0

[Event "MČR juniorů a juniorek v rapid šachu 2023"]
[Site "Czech Republic"]
[Date "2023.09.23"]
[Round "3.27"]
[White "Jun, Robert"]
[Black "Tvaroh, Vitezslav"]
[Result "1-0"]
[TimeControl "20 min + 5 sec per move"]
[WhiteFideId "23709510"]
[BlackFideId "23704209"]
[WhiteElo "1340"]
[BlackElo "1303"]

1. e4 {[%clk 00:20:09]} c5 {[%clk 00:20:04]} {[%emt 00:00:07]} 2. Nf3 {[%clk
00:20:12]} {[%emt 00:00:01]} Nc6 {[%clk 00:20:07]} {[%emt 00:00:02]} 3. c3
{[%clk 00:20:16]} {[%emt 00:00:01]} d6 {[%clk 00:20:04]} {[%emt 00:00:09]} 4.
d4 {[%clk 00:20:19]} cxd4 {[%clk 00:20:08]} {[%emt 00:00:01]} 5. cxd4 {[%clk
00:20:23]} {[%emt 00:00:02]} Nf6 {[%clk 00:20:00]} {[%emt 00:00:12]} 6. Nc3
{[%clk 00:20:27]} {[%emt 00:00:02]} Bd7 {[%clk 00:19:52]} {[%emt 00:00:13]} 7.
Bc4 {[%clk 00:20:21]} {[%emt 00:00:10]} g6 {[%clk 00:19:16]} {[%emt 00:00:42]}
8. O-O {[%clk 00:19:50]} {[%emt 00:00:35]} Bg7 {[%clk 00:19:18]} {[%emt
00:00:03]} 9. d5 {[%clk 00:19:37]} {[%emt 00:00:18]} Na5 {[%clk 00:18:15]}
{[%emt 00:01:09]} 10. Be2 {[%clk 00:19:11]} {[%emt 00:00:30]} Rc8 {[%clk
00:17:45]} {[%emt 00:00:35]} 11. Be3 {[%clk 00:18:51]} {[%emt 00:00:26]} a6
{[%clk 00:17:07]} {[%emt 00:00:43]} 12. Nd2 {[%clk 00:18:00]} {[%emt 00:00:55]}
b5 {[%clk 00:16:42]} {[%emt 00:00:31]} 13. Bd4 {[%clk 00:17:31]} {[%emt
00:00:32]} O-O {[%clk 00:16:29]} {[%emt 00:00:19]} 14. f4 {[%clk 00:17:08]}
{[%emt 00:00:28]} e6 {[%clk 00:14:26]} {[%emt 00:02:08]} 15. e5 {[%clk
00:16:53]} {[%emt 00:00:20]} dxe5 {[%clk 00:13:37]} {[%emt 00:00:54]} 16. fxe5
{[%clk 00:16:02]} {[%emt 00:00:55]} Nxd5 {[%clk 00:12:28]} {[%emt 00:01:15]} 17.
Nde4 {[%clk 00:15:44]} {[%emt 00:00:23]} Nc4 {[%clk 00:10:05]} {[%emt
00:02:28]} 18. Bxc4 {[%clk 00:14:09]} {[%emt 00:01:39]} Rxc4 {[%clk 00:09:20]}
{[%emt 00:00:50]} 19. Nxd5 {[%clk 00:13:11]} {[%emt 00:01:03]} exd5 {[%clk
00:09:08]} {[%emt 00:00:18]} 20. Nf6+ {[%clk 00:12:53]} {[%emt 00:00:22]} Kh8
{[%clk 00:08:55]} {[%emt 00:00:18]} 21. b3 {[%clk 00:12:05]} {[%emt 00:00:54]}
Rc6 {[%clk 00:08:06]} {[%emt 00:00:54]} 22. Nxd5 {[%clk 00:10:58]} {[%emt
00:01:11]} Bf5 {[%clk 00:06:32]} {[%emt 00:01:38]} 23. Ne3 {[%clk 00:08:17]}
{[%emt 00:02:47]} Be6 {[%clk 00:05:06]} {[%emt 00:01:31]} 24. Bb2 {[%clk
00:06:26]} {[%emt 00:01:56]} Qb6 {[%clk 00:04:20]} {[%emt 00:00:51]} 25. Qd4
{[%clk 00:06:05]} {[%emt 00:00:25]} Qxd4 {[%clk 00:03:33]} {[%emt 00:00:53]} 26.
Bxd4 {[%clk 00:06:08]} {[%emt 00:00:02]} Rd8 {[%clk 00:03:36]} {[%emt
00:00:02]} 27. Rfd1 {[%clk 00:05:55]} {[%emt 00:00:17]} Bh6 {[%clk 00:03:08]}
{[%emt 00:00:34]} 28. Kf2 {[%clk 00:03:53]} {[%emt 00:02:07]} Rc7 {[%clk
00:01:47]} {[%emt 00:01:26]} 29. Bb6 {[%clk 00:03:39]} {[%emt 00:00:19]} Bxe3+
{[%clk 00:01:40]} {[%emt 00:00:13]} 30. Kxe3 {[%clk 00:03:35]} {[%emt
00:00:08]} Rc3+ {[%clk 00:01:43]} {[%emt 00:00:02]} 31. Kf4 {[%clk 00:02:09]}
{[%emt 00:01:30]} g5+ {[%clk 00:00:52]} {[%emt 00:00:57]} 32. Kxg5 {[%clk
00:01:52]} {[%emt 00:00:22]} Rg8+ {[%clk 00:00:55]} {[%emt 00:00:02]} 33. Kf6
{[%clk 00:01:53]} {[%emt 00:00:05]} Rg6+ {[%clk 00:00:32]} {[%emt 00:00:28]} 34.
Ke7 {[%clk 00:01:50]} {[%emt 00:00:08]} h6 {[%clk 00:00:36]} {[%emt 00:00:02]}
35. Rd8+ {[%clk 00:01:43]} {[%emt 00:00:13]} Kh7 {[%clk 00:00:35]} {[%emt
00:00:06]} 36. g3 {[%clk 00:00:56]} {[%emt 00:00:49]} Rc2 {[%clk 00:00:34]}
{[%emt 00:00:08]} 37. a4 {[%clk 00:00:54]} {[%emt 00:00:08]} Rxh2 {[%clk
00:00:36]} {[%emt 00:00:03]} 38. axb5 {[%clk 00:00:56]} {[%emt 00:00:02]} axb5
{[%clk 00:00:36]} {[%emt 00:00:06]} 39. Ra5 {[%clk 00:00:56]} {[%emt 00:00:05]}
Bxb3 {[%clk 00:00:33]} {[%emt 00:00:07]} 40. Rxb5 {[%clk 00:00:59]} {[%emt
00:00:02]} Be6 {[%clk 00:00:33]} {[%emt 00:00:06]} 41. Bc5 {[%clk 00:00:49]}
{[%emt 00:00:14]} Rxg3 {[%clk 00:00:31]} {[%emt 00:00:06]} 42. Rbb8 {[%clk
00:00:53]} {[%emt 00:00:02]} Kg6 {[%clk 00:00:32]} {[%emt 00:00:04]} 43. Rg8+
{[%clk 00:00:54]} {[%emt 00:00:04]} Kf5 {[%clk 00:00:29]} {[%emt 00:00:09]} 44.
Rxg3 {[%clk 00:00:56]} {[%emt 00:00:02]} h5 {[%clk 00:00:29]} {[%emt 00:00:05]}
45. Rbg8 {[%clk 00:00:52]} {[%emt 00:00:09]} Kxe5 {[%clk 00:00:16]} {[%emt
00:00:19]} 46. R8g5+ {[%clk 00:00:56]} Ke4 {[%clk 00:00:18]} {[%emt 00:00:03]}
47. Re3+ {[%clk 00:00:39]} {[%emt 00:00:21]} Kf4 {[%clk 00:00:13]} {[%emt
00:00:11]} 48. Bd6+ {[%clk 00:00:23]} {[%emt 00:00:21]} Kxg5 {[%clk 00:00:15]}
{[%emt 00:00:02]} 49. Bxh2 {[%clk 00:00:26]} {[%emt 00:00:01]} h4 {[%clk
00:00:18]} {[%emt 00:00:03]} 50. Re5+ {[%clk 00:00:29]} {[%emt 00:00:02]} Kg6
{[%clk 00:00:20]} {[%emt 00:00:02]} 51. Kd6 {[%clk 00:00:31]} {[%emt 00:00:04]}
h3 {[%clk 00:00:24]} {[%emt 00:00:01]} 52. Re3 {[%clk 00:00:34]} {[%emt
00:00:02]} Kf5 {[%clk 00:00:28]} {[%emt 00:00:01]} 53. Rxh3 {[%clk 00:00:32]}
{[%emt 00:00:08]} Ke4 {[%clk 00:00:31]} {[%emt 00:00:01]} 54. Rh4+ {[%clk
00:00:34]} {[%emt 00:00:03]} Kd3 {[%clk 00:00:34]} {[%emt 00:00:03]} 55. Ke5
{[%clk 00:00:36]} {[%emt 00:00:02]} Kc3 {[%clk 00:00:37]} {[%emt 00:00:02]} 56.
Bg1 {[%clk 00:00:39]} {[%emt 00:00:02]} Kd3 {[%clk 00:00:38]} {[%emt 00:00:05]}
57. Rd4+ {[%clk 00:00:41]} {[%emt 00:00:03]} Kc3 {[%clk 00:00:41]} {[%emt
00:00:02]} 58. Ra4 {[%clk 00:00:45]} {[%emt 00:00:01]} Kd3 {[%clk 00:00:43]}
{[%emt 00:00:02]} 59. Bc5 {[%clk 00:00:44]} {[%emt 00:00:06]} Kc3 {[%clk
00:00:39]} {[%emt 00:00:09]} 60. Ra3+ {[%clk 00:00:38]} {[%emt 00:00:11]} Kd2
{[%clk 00:00:41]} {[%emt 00:00:04]} 61. Ke4 {[%clk 00:00:40]} {[%emt 00:00:03]}
Kc2 {[%clk 00:00:43]} {[%emt 00:00:02]} 62. Kd4 {[%clk 00:00:42]} {[%emt
00:00:03]} Bc8 {[%clk 00:00:42]} {[%emt 00:00:07]} 63. Rf3 {[%clk 00:00:41]}
{[%emt 00:00:05]} Be6 {[%clk 00:00:45]} {[%emt 00:00:02]} 64. Ba3 {[%clk
00:00:42]} {[%emt 00:00:04]} f5 {[%clk 00:00:41]} {[%emt 00:00:09]} 65. Rc3+
{[%clk 00:00:39]} {[%emt 00:00:07]} Kd2 {[%clk 00:00:45]} {[%emt 00:00:02]} 66.
Bc1+ {[%clk 00:00:41]} {[%emt 00:00:03]} Ke2 {[%clk 00:00:48]} {[%emt
00:00:03]} 67. Re3+ {[%clk 00:00:44]} {[%emt 00:00:02]} Kd1 {[%clk 00:00:50]}
{[%emt 00:00:03]} 68. Ba3 {[%clk 00:00:45]} {[%emt 00:00:03]} Bd7 {[%clk
00:00:53]} {[%emt 00:00:03]} 69. Kc3 {[%clk 00:00:42]} {[%emt 00:00:08]} f4
{[%clk 00:00:56]} {[%emt 00:00:02]} 70. Rf3 {[%clk 00:00:41]} {[%emt 00:00:05]}
Bg4 {[%clk 00:00:54]} {[%emt 00:00:07]} 71. Rxf4 {[%clk 00:00:42]} {[%emt
00:00:04]} Be2 {[%clk 00:00:58]} {[%emt 00:00:01]} 72. Rh4 {[%clk 00:00:43]}
{[%emt 00:00:04]} Ke1 {[%clk 00:01:01]} {[%emt 00:00:03]} 73. Bc5 {[%clk
00:00:45]} {[%emt 00:00:02]} Kf1 {[%clk 00:01:03]} {[%emt 00:00:03]} 74. Rf4+
{[%clk 00:00:44]} {[%emt 00:00:05]} Kg2 {[%clk 00:01:06]} {[%emt 00:00:03]} 75.
Rf2+ {[%clk 00:00:48]} 1-0